bitfinex-derivatives/quotes_ETHF0:USTF0_20251216
["timestamp","ask_amount","ask_price","bid_price","bid_amount"]
[1765909203432,4.82545271,2926.1,2926.0,1.1958]
[1765909203735,4.65454271,2926.1,2926.0,1.1958]
[1765909205831,4.65454271,2926.1,2926.0,1.9328]
[1765909206134,3.21214271,2926.1,2926.0,1.9328]
[1765909207034,3.2129233,2926.7,2926.6,1.5164]
[1765909207233,1.4418,2926.6,2926.5,0.4371]
[1765909207430,1.4418,2926.6,2926.5,1.2004]
[1765909208237,0.00277002,2926.6,2926.5,1.9535]
[1765909208945,0.72367002,2926.6,2926.5,1.9535]
[1765909209936,1.44457002,2926.6,2926.5,0.4371]
[1765909210133,1.44457002,2926.6,2926.5,1.2004]
[1765909210541,4.65237002,2926.6,2926.5,1.2004]
[1765909210938,4.65237002,2926.6,2926.5,0.4371]
[1765909211139,4.65237002,2926.6,2926.5,1.2004]
[1765909211338,4.65237002,2926.6,2926.5,1.9535]
[1765909211738,3.21057002,2926.6,2926.5,1.9535]
[1765909212135,3.93147002,2926.6,2926.5,1.9535]
[1765909212532,0.72367002,2926.6,2926.5,1.9535]
[1765909215543,1.44457002,2926.6,2926.5,1.9535]
[1765909218040,1.4418,2926.1,2926.0,1.2215]
[1765909218239,0.7209,2925.7,2925.6,4.7242]
[1765909218436,1.4418,2925.6,2925.5,1.2215]
[1765909218639,1.4418,2925.6,2925.5,1.9746]
[1765909219446,1.4418,2925.6,2925.5,1.2215]
[1765909220347,1.4418,2925.6,2925.5,1.9746]
[1765909223145,1.4418,2925.6,2925.5,0.4582]
[1765909223351,1.4418,2925.4,2925.3,0.0041554]
[1765909223851,4.6496,2925.4,2925.3,0.0041554]
[1765909224451,4.6496,2925.4,2925.3,1.5205554]
[1765909224655,4.6496,2925.4,2925.3,0.7674554]
[1765909224948,4.6496,2925.4,2925.3,0.0041554]
[1765909225552,0.7209,2924.6,2924.5,1.9535]
[1765909225754,1.4418,2924.6,2924.5,1.2004]
[1765909226052,0.7209,2924.6,2924.5,1.9535]
[1765909226251,1.4418,2924.6,2924.5,1.9535]
[1765909226551,1.4418,2924.6,2924.5,1.95720962]
[1765909227050,1.4418,2924.6,2924.5,0.00370962]
[1765909227746,3.2078,2924.7,2924.5,1.19390962]
[1765909227944,3.2078,2924.7,2924.6,1.5164]
[1765909228147,0.0051233,2924.8,2924.7,1.5164]
[1765909232466,2.33e-05,2924.8,2924.7,1.5164]
[1765909232758,3.2078,2925.4,2925.3,1.5164]
[1765909234051,0.7311233,2925.6,2925.5,2.0211]
[1765909234247,0.0051233,2925.6,2925.5,2.0211]
[1765909236553,4.659,2926.3,2926.2,1.4499]
[1765909236747,3.9334,2926.3,2926.2,1.4499]
[1765909236947,3.2078,2926.3,2926.2,1.4499]
[1765909237557,3.9334,2926.3,2926.2,1.4499]
[1765909238756,3.2078,2926.3,2926.2,1.4499]
[1765909239061,3.9334,2926.3,2926.2,1.4499]
[1765909239361,4.659,2926.3,2926.2,1.4499]
[1765909239862,1.4512,2926.1,2926.0,0.4611]
[1765909240163,3.2078,2926.3,2925.5,1.9176]
[1765909240164,1.4512,2925.6,2925.5,1.9176]
[1765909240366,0.7256,2925.6,2925.5,1.9176]
[1765909240564,1.4512,2925.6,2925.5,1.9176]
[1765909240762,4.659,2925.6,2925.5,1.9176]
[1765909241166,1.4512,2925.6,2925.5,1.9176]
[1765909241466,0.7256,2925.6,2925.5,1.9176]
[1765909243670,4.659,2925.9,2925.8,1.4499]
[1765909243863,3.2078,2925.9,2925.8,1.4499]
[1765909244753,3.9334,2926.3,2926.2,1.4499]
[1765909244959,3.2078,2926.3,2926.2,1.4499]
[1765909246961,0.7307233,2926.5,2926.4,1.4499]
[1765909247165,0.0051233,2926.5,2926.4,1.4499]
[1765909249264,1.4512,2926.2,2926.1,3.2078]
[1765909249470,1.4512,2926.1,2926.0,1.911]
[1765909249673,1.4512,2926.1,2926.0,1.1911]
[1765909249861,1.4512,2926.1,2926.0,1.911]
[1765909250372,0.7256,2926.1,2926.0,1.911]
[1765909251169,1.4512,2926.1,2926.0,0.4611]
[1765909253074,1.4512,2926.1,2926.0,1.1911]
[1765909253475,1.4512,2926.1,2926.0,0.4611]
[1765909253880,1.4512,2926.1,2926.0,1.1911]
[1765909254084,1.4512,2926.1,2926.0,1.911]
[1765909255085,1.4512,2926.1,2926.0,1.1911]
[1765909258386,1.4512,2925.6,2925.5,1.9176]
[1765909261490,3.9334,2925.8,2925.7,1.4499]
[1765909261782,3.2078,2925.8,2925.7,1.4499]
[1765909262285,1.4512,2925.6,2925.5,1.9176]
[1765909262484,0.7256,2925.6,2925.5,1.9176]
[1765909265493,1.4512,2925.6,2925.5,1.9176]
[1765909265690,1.4512,2925.6,2925.5,0.4677]
[1765909267187,1.4462,2925.2,2925.1,1.5523233]
[1765909267794,4.654,2925.2,2925.1,0.0051233]
[1765909271197,4.82496,2925.2,2925.1,0.0051233]
[1765909272083,4.82496,2925.2,2924.5,3.64860962]
[1765909272084,1.4462,2924.6,2924.5,0.44080962]
[1765909272487,1.4462,2924.6,2924.5,0.00370962]
[1765909272696,1.4462,2924.1,2924.0,2.0083]
[1765909273089,0.7307233,2924.3,2924.2,1.5472]
[1765909273296,0.0051233,2924.3,2924.2,1.5472]
[1765909273590,0.00806257,2924.3,2924.2,1.55029396]
[1765909274789,0.73366257,2924.3,2924.2,1.55029396]
[1765909274994,0.00806257,2924.3,2924.2,1.55029396]
[1765909275488,0.73366257,2924.3,2924.2,1.55029396]
[1765909275683,0.00806257,2924.3,2924.2,1.55029396]
[1765909278786,3.2078,2925.1,2924.7,1.5472]
[1765909279000,3.9414,2925.1,2925.0,1.9851]
[1765909279294,3.2078,2925.1,2925.0,1.9851]
[1765909279691,3.2078,2925.1,2924.5,4.4361]
[1765909279692,1.4542,2924.6,2924.5,4.4361]
[1765909279891,0.7336,2924.6,2924.5,1.9851]
[1765909280091,3.9414,2924.8,2924.7,1.5472]
[1765909280495,3.2078,2924.8,2924.7,1.5472]
[1765909281293,3.2078,2924.8,2924.5,0.4379]
[1765909281294,4.66627587,2925.1,2925.0,1.9851]
[1765909284499,3.21207587,2925.1,2925.0,1.9851]
[1765909284695,3.94567587,2925.1,2925.0,1.9851]
[1765909284893,4.66627587,2925.1,2925.0,1.9851]
[1765909288307,3.21207587,2925.1,2925.0,1.9851]
[1765909290004,4.66627587,2925.1,2925.0,0.4379]
[1765909290400,0.7336,2924.6,2924.5,1.9851]
[1765909290800,3.21207587,2925.1,2924.5,1.9851]
[1765909291101,3.21207587,2925.1,2925.0,1.9851]
[1765909291307,0.00427587,2925.1,2925.0,3.38759001]
[1765909291698,3.2078,2925.5,2925.4,1.5472]
[1765909292199,3.9508,2925.5,2925.4,1.5472]
[1765909292604,3.95419614,2925.5,2925.4,1.5472]
[1765909293106,3.21119614,2925.5,2925.4,1.5472]
[1765909294507,0.00339614,2925.5,2925.4,1.5472]
[1765909295806,0.00339614,2925.5,2925.4,4.755]
[1765909296108,0.0051233,2925.7,2925.6,1.5255]
[1765909296901,0.00931642,2925.7,2925.6,1.5255]
[1765909297701,3.2078,2926.1,2926.0,1.9975]
[1765909298602,40.97086,2926.9,2926.8,0.7824]
[1765909298912,44.18265297,2926.9,2926.8,0.00409796]
[1765909299301,4.94405297,2926.9,2926.8,0.78649796]
[1765909300212,4.94405297,2926.9,2926.8,0.00409796]
[1765909302211,1.5614,2926.2,2926.1,3.2078]
[1765909302411,1.5614,2926.2,2926.1,3.9902]
[1765909303307,1.5614,2926.2,2926.1,4.736505]
[1765909303611,0.7735,2926.2,2926.1,4.736505]
[1765909303812,0.94437,2926.7,2926.6,1.5255]
[1765909304016,1.73227,2926.7,2926.1,3.211005]
[1765909304413,1.5614,2926.7,2926.6,0.7824]
[1765909304709,4.77319297,2926.9,2926.1,3.211005]
[1765909305211,4.77319297,2926.9,2926.8,1.5255]
[1765909305407,3.98529297,2926.9,2926.8,1.5255]
[1765909305804,4.77319297,2926.9,2926.8,1.5255]
[1765909306716,4.77319297,2926.9,2926.8,0.7824]
[1765909307410,4.77319297,2926.9,2926.1,3.211005]
[1765909307614,1.56539297,2926.9,2926.4,3.2078]
[1765909310516,1.9953,2926.5,2926.4,3.9902]
[1765909310703,1.9953,2926.5,2926.4,3.2078]
[1765909310903,1.5614,2926.2,2926.1,3.211005]
[1765909311613,1.5614,2926.2,2926.1,3.993405]
[1765909311808,1.5614,2926.2,2926.1,3.211005]
[1765909312110,0.7735,2926.2,2926.1,4.736505]
[1765909312312,1.9953,2926.5,2926.4,1.5255]
[1765909313616,0.17485297,2926.9,2926.4,1.5255]
[1765909313917,1.5614,2926.8,2926.7,1.5255]
[1765909314116,1.56539297,2926.9,2926.8,1.5255]
[1765909314315,1.56539297,2926.9,2926.8,0.7824]
[1765909315016,1.56539297,2926.9,2926.4,3.2078]
[1765909316006,1.9953,2926.5,2926.4,3.9902]
[1765909316320,0.7735,2926.2,2926.1,1.528705]
[1765909316513,1.9953,2926.5,2926.4,0.7824]
[1765909317417,0.17485297,2926.9,2926.4,1.5255]
[1765909317623,1.73625297,2926.9,2926.8,1.5255]
[1765909317820,0.00399297,2926.9,2926.8,2.92652207]
[1765909318420,0.77749297,2926.9,2926.8,2.92652207]
[1765909318921,0.00399297,2926.9,2926.8,2.92652207]
[1765909319525,0.00399297,2926.9,2926.8,1.5255]
[1765909319713,0.77749297,2926.9,2926.8,1.5255]
[1765909319914,1.56539297,2926.9,2926.8,1.5255]
[1765909322821,0.7735,2926.4,2926.3,4.7333]
[1765909323020,1.9953,2926.5,2926.4,1.5255]
[1765909323614,1.5614,2926.4,2926.3,3.2078]
[1765909325227,1.5633,2926.2,2926.1,0.003205]
[1765909326528,1.5633,2926.1,2926.0,2.68132438]
[1765909326723,2.0403,2925.5,2925.4,0.0051233]
[1765909327630,2.0403,2925.5,2925.4,0.00919545]
[1765909329636,5.2481,2925.5,2925.4,0.00919545]
[1765909330429,3.2078,2925.8,2925.7,1.5486]
[1765909330636,1.2524,2926.0,2925.9,1.5486]
[1765909331828,2.0403,2926.0,2925.9,1.5486]
[1765909332027,2.0403,2926.0,2925.9,0.7613]
[1765909332224,3.9832,2926.1,2926.0,1.5486]
[1765909332429,3.2078,2926.1,2926.0,1.5486]
[1765909332933,3.9832,2926.1,2926.0,1.5486]
[1765909333739,4.7711,2926.1,2926.0,0.7613]
[1765909333938,2.0403,2925.5,2925.4,4.76559545]
[1765909334537,0.477,2926.0,2925.4,4.76559545]
[1765909334728,1.2524,2926.0,2925.9,1.5486]
[1765909334928,2.0403,2926.0,2925.9,1.5486]
[1765909335230,2.0403,2926.0,2925.9,0.7613]
[1765909335431,2.0403,2926.0,2925.9,1.5486]
[1765909335632,2.0403,2926.0,2925.9,0.7613]
[1765909335932,0.7754,2925.6,2925.5,1.5486]
[1765909336130,3.9832,2926.1,2926.0,1.5486]
[1765909336437,3.2078,2926.1,2926.0,1.9118]
[1765909337336,3.2078,2926.1,2926.0,1.5486]
[1765909338141,3.9832,2926.1,2926.0,1.5486]
[1765909338840,2.0403,2926.0,2925.5,0.454]
[1765909339142,2.0403,2926.0,2925.9,0.7613]
[1765909339534,2.0403,2926.0,2925.9,1.5486]
[1765909339833,1.2524,2926.0,2925.9,1.5486]
[1765909340636,2.0403,2926.0,2925.9,1.5486]
[1765909342042,1.2524,2926.0,2925.9,1.5486]
[1765909342745,1.2524,2926.0,2925.4,3.21699545]
[1765909342746,2.0403,2926.0,2925.4,3.21699545]
[1765909343244,1.2524,2925.5,2925.4,4.76559545]
[1765909343446,2.0403,2926.0,2925.9,1.5486]
[1765909344053,3.9832,2926.1,2926.0,1.5486]
[1765909344538,4.7711,2926.1,2926.0,1.5486]
[1765909344744,1.2524,2926.0,2925.9,1.5486]
[1765909344939,2.0403,2926.0,2925.9,1.5486]
[1765909345142,1.5633,2925.6,2925.5,4.7564]
[1765909345340,0.477,2926.0,2925.5,4.7564]
[1765909345545,2.0403,2926.0,2925.9,0.7613]
[1765909346141,2.0403,2926.0,2925.5,3.2078]
[1765909346142,3.9832,2926.1,2926.0,1.5486]
[1765909346344,4.7711,2926.1,2926.0,1.5486]
[1765909347551,2.0403,2926.0,2925.9,0.7613]
[1765909347746,2.0403,2926.0,2925.9,1.5486]
[1765909350257,1.2524,2926.0,2925.9,1.5486]
[1765909350852,2.0403,2926.0,2925.9,1.5486]
[1765909351157,3.9832,2926.4,2926.0,0.3632]
[1765909351454,1.2093,2926.5,2926.4,1.5486]
[1765909351648,0.7754,2926.5,2926.4,1.5486]
[1765909351845,4.7711,2926.7,2926.6,0.7613]
[1765909352049,4.7711,2926.7,2926.1,3.2078]
[1765909352352,0.00399297,2926.9,2926.8,1.5486]
[1765909354248,0.00399297,2926.9,2926.8,4.7564]
[1765909354447,0.0051233,2927.1,2927.0,1.9483]
[1765909355360,0.00932821,2927.1,2927.0,1.9483]
[1765909355653,3.8556,2928.0,2927.6,1.495]
[1765909355961,1.24,2927.0,2926.9,1.495]
[1765909356254,3.2078,2927.4,2926.9,1.495]
[1765909356455,3.21152369,2927.4,2926.9,1.5001233]
[1765909356660,3.21664699,2927.4,2926.9,1.5043947]
[1765909358954,5.2166,2927.0,2926.9,0.0093947]
[1765909361056,1.5426,2926.3,2926.2,4.7028]
[1765909361660,0.7738,2926.3,2926.2,4.7028]
[1765909361855,0.7738,2926.3,2926.2,4.70631886]
[1765909362055,2.0088,2926.5,2926.4,0.772]
[1765909362259,1.5426,2926.3,2926.2,4.70631886]
[1765909362759,0.7738,2926.3,2926.2,4.70631886]
[1765909363454,2.0088,2926.5,2926.4,1.495]
[1765909363663,0.7738,2926.5,2926.4,1.495]
[1765909365062,1.5426,2926.5,2926.4,1.495]
[1765909365361,0.7738,2926.5,2926.4,1.495]
[1765909366156,4.7504,2926.7,2926.6,0.772]
[1765909366961,4.7504,2926.7,2926.6,1.495]
[1765909367262,4.7504,2926.7,2926.6,0.772]
[1765909367762,4.7504,2927.1,2927.0,1.495]
[1765909367962,3.2078,2927.1,2927.0,1.495]
[1765909368763,4.7504,2927.1,2927.0,1.495]
[1765909369357,1.5426,2927.1,2927.0,1.495]
[1765909369558,0.7738,2927.1,2927.0,1.495]
[1765909369755,4.93007699,2927.4,2927.3,0.772]
[1765909370261,4.75924699,2927.4,2927.3,1.495]
[1765909371264,4.75924699,2927.4,2926.6,3.2078]
[1765909371460,4.75924699,2927.4,2927.3,0.772]
[1765909371666,3.99044699,2927.4,2927.3,1.495]
[1765909372367,4.75924699,2927.4,2927.3,1.495]
[1765909372966,3.21664699,2927.4,2927.3,1.495]
[1765909373969,0.00884699,2927.4,2927.3,1.495]
[1765909375571,1.55144699,2927.4,2927.3,1.495]
[1765909375768,1.55144699,2927.4,2926.9,3.2078]
[1765909376072,0.7738,2927.0,2926.9,4.7028]
[1765909376872,2.0088,2927.0,2926.9,4.7028]
[1765909377274,1.55144699,2927.4,2927.3,1.495]
[1765909377469,1.55144699,2927.4,2927.3,0.772]
[1765909378075,2.0088,2927.0,2926.9,4.7028]
[1765909378467,2.0088,2927.0,2926.9,3.2078]
[1765909378774,1.5426,2926.4,2926.3,1.495]
[1765909378973,0.7738,2926.4,2926.3,1.495]
[1765909382172,3.84486,2927.0,2926.3,1.495]
[1765909382774,3.84486,2927.0,2926.2,3.21131886]
[1765909382775,5.38746,2927.0,2926.9,0.772]
[1765909383178,5.38746,2927.0,2926.9,1.495]
[1765909383374,5.38746,2927.0,2926.9,0.772]
[1765909383777,5.38746,2927.0,2926.2,3.21131886]
[1765909383973,2.17966,2927.0,2926.2,3.21131886]
[1765909384277,2.17966,2927.0,2926.2,6.27516776]
[1765909384479,5.38746,2927.0,2926.2,6.27516776]
[1765909384678,5.38746,2927.0,2926.2,3.21131886]
[1765909385277,5.38746,2927.0,2926.2,6.27516776]
[1765909385577,5.38746,2927.0,2926.2,3.21131886]
[1765909386371,5.38746,2927.0,2926.2,6.27516776]
[1765909388275,1.1931,2926.5,2926.4,1.5175]
[1765909388475,4.85798,2926.7,2926.6,0.7505]
[1765909388773,1.4793,2926.7,2926.6,1.5175]
[1765909388980,0.7599,2926.7,2926.6,1.5175]
[1765909389182,1.4793,2926.7,2926.6,1.5175]
[1765909389477,1.4793,2926.7,2926.6,0.7505]
[1765909391377,0.7599,2926.3,2926.2,0.75401886]
[1765909391580,0.20456411,2926.3,2926.2,1.52101886]
[1765909391781,0.76874699,2927.4,2927.3,1.5175]
[1765909391982,0.00884699,2927.4,2927.3,1.5175]
[1765909392179,4.699e-05,2927.4,2927.3,1.5175]
[1765909392373,3.2078,2928.2,2928.1,1.5175]
[1765909392575,0.8942228,2928.9,2928.6,1.5175]
[1765909392576,3.2078,2928.7,2928.6,1.5175]
[1765909392780,1.65005,2928.9,2928.5,0.4068]
[1765909392974,4.6871,2928.6,2928.5,1.5175]
[1765909393377,4.69062661,2928.6,2928.5,1.51996482]
[1765909394383,4.69062661,2928.6,2928.5,0.76946482]
[1765909394778,4.69062661,2928.6,2928.5,0.00246482]
[1765909395174,4.69062661,2928.6,2928.5,1.51996482]
[1765909395380,0.00352661,2928.6,2928.5,1.96276482]
[1765909395985,0.76342661,2928.6,2928.5,1.96276482]
[1765909397083,1.48282661,2928.6,2928.5,0.00246482]
[1765909397777,1.48282661,2928.6,2928.5,0.75296482]
[1765909399176,1.48282661,2928.6,2928.5,0.00246482]
[1765909400574,1.65358661,2928.6,2928.5,0.00246482]
[1765909400778,1.4793,2927.9,2927.8,1.5175]
[1765909401888,1.4793,2927.9,2927.8,1.52109587]
[1765909402185,1.4793,2927.9,2927.8,0.75409587]
[1765909402386,1.4793,2927.9,2927.8,1.52109587]
[1765909402589,1.4793,2928.2,2928.1,0.7505]
[1765909403684,5.29107,2928.5,2928.4,0.7505]
[1765909403878,5.29107,2928.5,2927.8,0.75409587]
[1765909403879,1.4793,2927.9,2927.8,0.75409587]
[1765909404976,1.4793,2927.9,2927.8,0.00359587]
[1765909406485,1.4793,2927.9,2927.8,0.75409587]
[1765909406883,1.4793,2927.9,2927.8,1.52109587]
[1765909407288,4.85789,2928.2,2928.1,1.5175]
[1765909407591,0.7599,2927.9,2927.8,1.52109587]
[1765909407882,0.17079,2928.2,2927.8,1.52109587]
[1765909408688,1.65009,2928.2,2928.1,0.7505]
[1765909409992,1.4793,2928.2,2928.1,0.7505]
[1765909411082,0.7599,2927.9,2927.8,1.52109587]
[1765909415081,1.5478,2927.9,2927.8,1.52109587]
[1765909415484,0.7647,2927.9,2927.8,1.52109587]
[1765909416194,4.7556,2928.3,2928.2,0.743]
[1765909416393,1.5478,2927.9,2927.8,1.49569587]
[1765909416594,1.5478,2927.9,2927.8,0.74659587]
[1765909416895,3.9725,2928.4,2928.3,1.4921]
[1765909417495,4.7556,2928.4,2928.3,1.4921]
[1765909418789,4.7556,2928.4,2928.3,0.743]
[1765909418992,0.7647,2927.9,2927.8,4.70349587]
[1765909419193,3.2078,2928.4,2927.8,4.70349587]
[1765909419888,3.2078,2928.4,2927.8,1.49569587]
[1765909420292,3.2078,2928.4,2928.3,1.4921]
[1765909420598,0.00352661,2928.6,2928.5,1.936]
[1765909420992,3.2078,2929.3,2929.2,1.4921]
[1765909421491,4.7556,2929.3,2929.2,1.4921]
[1765909421896,4.7556,2929.3,2928.8,3.0638489]
[1765909422198,1.5478,2928.9,2928.8,1.4921]
[1765909422491,4.76340227,2929.3,2929.2,1.4921]
[1765909422689,3.21560227,2929.3,2929.2,1.4921]
[1765909423292,3.98030227,2929.3,2929.2,1.4921]
[1765909423497,4.76340227,2929.3,2929.2,1.4921]
[1765909423689,4.76340227,2929.3,2929.2,0.743]
[1765909423885,4.76340227,2929.3,2928.6,6.2716489]
[1765909424090,4.76340227,2929.3,2929.2,0.743]
[1765909424290,3.21560227,2929.3,2929.2,1.4921]
[1765909424498,3.98030227,2929.3,2929.2,1.4921]
[1765909425493,4.76340227,2929.3,2929.2,0.743]
[1765909425701,4.76340227,2929.3,2928.6,6.2716489]
[1765909426202,4.76340227,2929.3,2928.6,3.2078]
[1765909426409,4.76340227,2929.3,2929.2,0.743]
[1765909426994,0.7647,2928.7,2928.6,4.6999]
[1765909427494,2.0204,2929.0,2928.9,0.743]
[1765909427693,2.0204,2929.0,2928.9,1.4921]
[1765909428197,4.76340227,2929.3,2929.2,0.743]
[1765909428502,4.76340227,2929.3,2928.6,3.2078]
[1765909428696,4.76340227,2929.3,2929.2,1.4921]
[1765909429504,4.76340227,2929.3,2929.2,0.743]
[1765909430900,4.76340227,2929.3,2929.2,1.4921]
[1765909432103,4.76340227,2929.3,2929.2,0.743]
[1765909432405,4.76340227,2929.3,2928.6,3.2078]
[1765909433100,3.99870227,2929.3,2928.6,3.9508]
[1765909435099,4.76340227,2929.3,2929.2,0.743]
[1765909435297,4.76340227,2929.3,2929.2,1.4921]
[1765909437304,2.0204,2929.0,2928.9,0.743]
[1765909438007,2.0204,2929.0,2928.9,1.4921]
[1765909439810,2.0204,2929.0,2928.9,0.743]
[1765909440107,2.0204,2929.0,2928.9,1.4921]
[1765909440311,4.76340227,2929.3,2929.2,1.4921]
[1765909441499,0.77250227,2929.3,2929.2,1.4921]
[1765909441806,0.7647,2929.3,2929.2,1.4921]
[1765909442309,3.37849,2929.9,2929.2,1.4921]
[1765909442611,4.7556,2929.9,2929.8,1.4921]
[1765909442807,4.75966282,2929.9,2929.8,1.4921]
[1765909443912,4.75966282,2929.9,2929.8,0.743]
[1765909444411,1.5211,2929.7,2929.6,0.0051233]
[1765909445002,0.7739,2928.9,2928.8,4.7572]
[1765909445206,0.4552,2929.5,2928.8,4.7572]
[1765909445407,0.7739,2928.9,2928.8,4.7572]
[1765909445804,3.2078,2929.3,2928.8,4.7572]
[1765909446002,3.2078,2929.3,2928.8,4.7623233]
[1765909447110,3.2078,2929.3,2929.2,1.5494]
[1765909447519,3.9817,2929.3,2929.2,1.5494]
[1765909447723,3.2078,2929.3,2929.2,1.5494]
[1765909448309,3.9817,2929.8,2929.7,1.5494]
[1765909448521,3.2078,2929.8,2929.7,1.5494]
[1765909448719,3.9817,2929.8,2929.7,1.5494]
[1765909449015,4.7289,2929.8,2929.7,0.7769]
[1765909449413,4.7289,2929.8,2929.7,1.5494]
[1765909449920,4.7289,2929.8,2929.2,3.0638489]
[1765909450120,4.7289,2929.8,2929.7,0.7769]
[1765909450515,4.7289,2929.8,2929.3,3.0638489]
[1765909450717,1.5211,2929.4,2929.3,4.6132489]
[1765909451116,3.2078,2929.8,2929.3,4.6132489]
[1765909451318,0.7739,2929.4,2929.3,4.6132489]
[1765909451520,3.2078,2929.8,2929.3,1.5494]
[1765909451819,4.7289,2929.8,2929.7,1.5494]
[1765909452620,0.4552,2931.0,2929.7,6.0]
[1765909452814,0.4552,2931.0,2930.9,3.2078]
[1765909453118,0.4552,2931.0,2930.5,3.0644116]
[1765909453119,1.5211,2930.7,2930.6,3.0644116]
[1765909453313,0.4552,2931.0,2930.5,3.0644116]
[1765909453512,1.9763,2931.0,2930.4,3.0644116]
[1765909453716,0.4552,2930.5,2930.4,0.1698]
[1765909453912,0.45792467,2930.5,2930.4,0.17338027]
[1765909454117,2.467e-05,2930.5,2930.4,10.61957263]
[1765909454319,0.0051233,2930.7,2930.6,0.1644]
[1765909454526,0.4552,2931.0,2930.9,0.1557]
[1765909454720,0.4552,2931.0,2930.6,6.0]
[1765909454721,0.4552,2932.0,2931.4,0.147]
[1765909455223,0.4590296,2931.5,2931.4,0.147]
[1765909455816,0.4590296,2931.5,2931.4,3.3548]
[1765909457913,1.2329296,2931.5,2931.4,3.3548]
[1765909458115,1.9801296,2931.5,2931.4,3.2078]
[1765909459025,0.4590296,2931.5,2931.4,3.2971]
[1765909460526,1.2329296,2931.5,2931.4,3.2568]
[1765909460827,1.2329296,2931.5,2931.4,3.2801]
[1765909461230,1.2329296,2931.5,2931.4,3.2568]
[1765909461431,1.9801296,2931.5,2931.4,3.2568]
[1765909461932,1.2329296,2931.5,2931.4,3.2568]
[1765909462124,1.2329296,2931.5,2931.4,3.2716]
[1765909462323,0.4590296,2931.5,2931.4,7.75172783]
[1765909462730,1.9801296,2931.5,2931.4,3.2568]
[1765909463028,1.9801296,2931.5,2931.4,3.2078]
[1765909463233,1.5211,2931.2,2931.1,3.2078]
[1765909466629,1.5211,2930.9,2930.8,3.2078]
[1765909470934,3.83363,2931.0,2930.4,0.00358027]
[1765909471138,1.9763,2930.5,2930.4,0.00358027]
[1765909472042,1.9763,2930.5,2930.4,1.55298027]
[1765909472043,1.5211,2930.5,2930.4,1.55298027]
[1765909472433,0.7739,2930.5,2930.4,1.55298027]
[1765909472742,4.7289,2930.9,2930.8,1.5494]
[1765909472944,4.7289,2930.9,2930.8,0.7769]
[1765909473539,4.7289,2930.9,2930.8,1.5494]
[1765909473944,3.2078,2930.9,2930.8,1.5494]
[1765909474243,3.2078,2931.6,2930.8,4.7572]
[1765909474438,1.0,2930.9,2930.8,1.5494]
[1765909474937,1.9942,2930.9,2930.8,1.5494]
[1765909475133,3.2078,2931.3,2930.8,1.5494]
[1765909476140,0.9414,2930.9,2930.8,1.5494]
[1765909476544,0.9414,2930.6,2930.5,5.5325]
[1765909476843,44.0078,2931.6,2931.2,1.8807]
[1765909477038,2.3946296,2931.5,2931.1,3.2078]
[1765909477239,2.3946296,2931.5,2931.4,0.9276]
[1765909477849,2.3946296,2931.5,2931.4,1.8807]
[1765909478049,1.9394296,2931.5,2931.4,1.8807]
[1765909479348,0.0038296,2931.5,2931.4,1.8807]
[1765909479646,0.0038296,2931.5,2931.4,5.0885]
[1765909481045,0.9452296,2931.5,2931.4,5.0885]
[1765909481250,1.9394296,2931.5,2931.4,3.2078]
[1765909482153,1.9394296,2931.5,2931.4,4.1354]
[1765909482345,2.5393296,2931.5,2931.4,3.2078]
[1765909482745,2.5393296,2931.5,2931.1,3.2078]
[1765909483153,2.5393296,2931.5,2931.4,0.9276]
[1765909483453,1.9394296,2931.5,2931.4,1.8807]
[1765909483649,1.9356,2931.2,2931.1,3.2078]
[1765909484054,1.9356,2931.2,2931.1,4.1354]
[1765909484249,1.9356,2931.2,2931.1,5.0885]
[1765909484647,0.1706,2931.4,2930.8,5.0885]
[1765909484950,0.1706,2931.4,2931.3,1.8807]
[1765909484951,0.9414,2931.4,2931.3,1.8807]
[1765909486464,0.0038296,2931.5,2931.4,1.8807]
[1765909486752,0.0038296,2931.5,2931.4,5.0885]
[1765909488459,1.9394296,2931.5,2931.4,3.2078]
[1765909488754,1.9394296,2931.5,2931.4,5.0885]
[1765909488954,2.4845296,2931.5,2931.4,3.2078]
[1765909490852,0.9414,2931.1,2931.0,1.5185]
[1765909491061,2.5165,2931.0,2930.9,3.2078]
[1765909491263,1.9356,2930.7,2930.6,1.8807]
[1765909491559,2.5165,2931.0,2930.9,0.9276]
[1765909491759,0.9414,2930.7,2930.6,5.0885]
[1765909492164,2.5165,2931.0,2930.9,0.9276]
[1765909492350,0.9414,2931.0,2930.9,1.8807]
[1765909492552,1.9356,2931.0,2930.9,1.8807]
[1765909492863,1.9356,2931.0,2930.9,0.9276]
[1765909493059,2.4975,2931.0,2930.9,0.9276]
[1765909493751,1.9356,2930.7,2930.6,3.2078]
[1765909493969,1.9356,2930.7,2930.6,5.0885]
[1765909494153,0.9414,2930.7,2930.6,5.0885]
[1765909494655,0.5619,2931.0,2930.6,5.0885]
[1765909495050,2.4975,2931.0,2930.9,0.9276]
[1765909497663,1.9356,2931.0,2930.9,0.9276]
[1765909497864,1.9356,2931.0,2930.9,1.8807]
[1765909500271,1.9356,2930.7,2930.6,3.2078]
[1765909500670,1.9356,2930.7,2930.6,5.0885]
[1765909501670,0.9414,2930.7,2930.6,5.0885]
[1765909501865,1.9356,2930.7,2930.6,5.0885]
[1765909502367,0.9414,2930.7,2930.6,5.0885]
[1765909503369,2.4229,2931.0,2930.9,0.9276]
[1765909503770,1.9356,2931.0,2930.9,1.8807]
[1765909503970,4.9617,2931.4,2931.3,0.8228]
[1765909504169,1.7539,2931.4,2931.3,1.6909]
[1765909504368,1.7539,2931.4,2931.3,0.8228]
[1765909504563,1.7539,2931.4,2931.3,1.6909]
[1765909504970,1.7539,2931.4,2931.3,0.8228]
[1765909505166,0.8927296,2931.5,2931.4,1.6909]